bitfinex-derivatives/quotes_BTCF0:USTF0_20210102
["timestamp","ask_amount","ask_price","bid_price","bid_amount"]
[1609582383104,1.18043158,29698.0,29697.0,0.00037864]
[1609582383403,1.18043158,29698.0,29691.0,0.00037864]
[1609582383804,5.09743158,29698.0,29690.0,0.04140906]
[1609582384004,5.09743158,29698.0,29692.0,0.00037864]
[1609582384203,5.09743158,29698.0,29691.0,0.00037864]
[1609582384406,0.18043158,29692.0,29691.0,0.00037864]
[1609582384603,1.33061158,29692.0,29690.0,0.04140906]
[1609582384805,1.33061158,29692.0,29691.0,0.00037867]
[1609582385206,1.33061158,29692.0,29690.0,0.04140909]
[1609582385607,1.33061158,29692.0,29691.0,0.00037867]
[1609582385807,1.33061158,29692.0,29690.0,0.00037867]
[1609582386007,1.33061158,29692.0,29691.0,0.00037867]
[1609582386609,1.33061158,29692.0,29690.0,0.00037867]
[1609582386810,1.33061158,29692.0,29691.0,0.00037867]
[1609582387410,1.33061158,29692.0,29690.0,0.00037867]
[1609582387611,1.33061158,29692.0,29689.0,0.03]
[1609582387612,1.33061158,29692.0,29691.0,0.00037867]
[1609582388211,1.33061158,29692.0,29690.0,0.00037867]
[1609582388413,1.33061158,29692.0,29691.0,0.00037867]
[1609582389013,1.33061158,29692.0,29690.0,0.00037867]
[1609582389214,1.33061158,29692.0,29691.0,0.00037867]
[1609582389713,1.33061158,29692.0,29690.0,0.00037867]
[1609582390114,1.33061158,29692.0,29691.0,0.00037867]
[1609582390314,1.33061158,29692.0,29690.0,0.00037867]
[1609582390517,1.33102193,29692.0,29691.0,0.00037867]
[1609582390917,1.33102193,29692.0,29689.0,0.03]
[1609582390918,1.33061158,29692.0,29689.0,0.03]
[1609582391115,1.33061158,29692.0,29690.0,0.04141346]
[1609582392916,1.33061158,29692.0,29690.0,0.00037867]
[1609582393117,0.33061158,29692.0,29690.0,0.00037867]
[1609582394217,1.0,29691.0,29690.0,0.00037867]
[1609582394617,1.00041034,29691.0,29690.0,0.00037867]
[1609582395417,1.0,29691.0,29690.0,0.00037867]
[1609582395818,1.00041034,29691.0,29690.0,0.00037867]
[1609582396318,1.0,29691.0,29690.0,0.00037867]
[1609582400326,0.33061158,29692.0,29690.0,0.00037867]
[1609582400726,5.3639,29691.0,29690.0,0.00037867]
[1609582402129,6.3639,29691.0,29690.0,0.00037867]
[1609582403430,0.33061158,29692.0,29690.0,0.00037867]
[1609582405937,1.33061158,29692.0,29690.0,0.00037867]
[1609582407739,1.98681158,29692.0,29690.0,0.00037867]
[1609582409441,1.33061158,29692.0,29690.0,0.00037867]
[1609582409842,4.193,29691.0,29690.0,0.00037867]
[1609582410042,5.193,29691.0,29690.0,0.00037867]
[1609582412243,5.19341038,29691.0,29690.0,0.00037867]
[1609582413544,6.19341038,29691.0,29690.0,0.00037867]
[1609582413844,6.19341038,29691.0,29671.0,0.1235036]
[1609582414044,6.19341038,29691.0,29690.0,0.00037875]
[1609582414443,0.00041042,29690.0,29672.0,0.00037875]
[1609582414644,0.00041042,29690.0,29671.0,0.0414207]
[1609582414843,0.18043158,29672.0,29671.0,0.04104195]
[1609582415044,0.28639158,29672.0,29671.0,0.04104195]
[1609582415245,0.28639158,29672.0,29671.0,0.0414207]
[1609582415443,0.28639158,29672.0,29664.0,0.1235049]
[1609582415643,0.28639158,29672.0,29671.0,0.04142137]
[1609582416043,1.05809158,29672.0,29664.0,0.12350626]
[1609582416245,0.28639158,29672.0,29671.0,0.04142206]
[1609582416444,5.18459158,29672.0,29665.0,0.04142241]
[1609582416847,0.18043158,29666.0,29665.0,0.18043158]
[1609582417247,0.33526158,29666.0,29665.0,0.22185512]
[1609582419751,0.33526158,29666.0,29665.0,0.04142354]
[1609582420151,0.33526158,29666.0,29660.0,0.04142293]
[1609582420751,0.15483,29666.0,29661.0,0.18043158]
[1609582421353,0.15483,29666.0,29662.0,0.04142421]
[1609582421951,0.15483,29666.0,29663.0,0.04142425]
[1609582422553,4.1891,29669.0,29662.0,0.0414242]
[1609582422753,0.10596,29672.0,29664.0,0.04142418]
[1609582423153,0.2774,29676.0,29663.0,0.0414253]
[1609582423353,0.2774,29676.0,29662.0,0.04142484]
[1609582423555,0.2774,29676.0,29664.0,0.04142477]
[1609582423753,1.39541,29676.0,29664.0,0.04142477]
[1609582423953,4.4529,29669.0,29663.0,0.04142483]
[1609582424153,4.62168,29669.0,29665.0,0.04142595]
[1609582424353,4.62168,29669.0,29664.0,0.04142601]
[1609582424755,4.62168,29669.0,29666.0,0.04142865]
[1609582424955,4.62168,29669.0,29665.0,0.04142862]
[1609582425154,4.62168,29669.0,29667.0,0.04142862]
[1609582425454,4.62168,29669.0,29666.0,0.04142998]
[1609582425655,4.62168,29669.0,29668.0,0.04105032]
[1609582425853,4.62168,29669.0,29668.0,0.04142914]
[1609582426056,4.62168,29669.0,29667.0,0.04142955]
[1609582426255,4.62168,29669.0,29656.0,0.04142902]
[1609582426455,4.62168,29669.0,29668.0,0.00037882]
[1609582426756,4.80211158,29669.0,29657.0,0.04142943]
[1609582427056,4.80211158,29669.0,29668.0,0.00037882]
[1609582427255,4.80211158,29669.0,29658.0,0.04142929]
[1609582427657,4.80211158,29669.0,29654.0,0.04142972]
[1609582427857,4.80211158,29669.0,29659.0,0.04142988]
[1609582428058,4.80211158,29669.0,29655.0,0.04142961]
[1609582428359,4.80211158,29669.0,29660.0,0.04143024]
[1609582428560,4.80211158,29669.0,29656.0,0.04143013]
[1609582428760,0.18043158,29657.0,29656.0,0.04143013]
[1609582428961,0.18043158,29657.0,29653.0,0.26253304]
[1609582429161,0.18043158,29657.0,29654.0,0.04143032]
[1609582433866,0.18043158,29657.0,29655.0,0.04143229]
[1609582434068,0.1322,29663.0,29655.0,0.04143229]
[1609582434267,0.16878,29669.0,29660.0,3.9908]
[1609582434466,0.39541,29676.0,29660.0,3.9908]
[1609582434666,0.39541,29676.0,29661.0,0.04143105]
[1609582434867,0.39541,29676.0,29668.0,0.18043158]
[1609582435266,0.39541,29676.0,29669.0,0.04142721]
[1609582436867,0.18043158,29670.0,29669.0,0.04142721]
[1609582437667,0.34416158,29670.0,29669.0,0.04142721]
[1609582437867,0.34416158,29670.0,29661.0,0.12352385]
[1609582438167,0.34416158,29670.0,29669.0,0.0414277]
[1609582438367,0.34416158,29670.0,29662.0,0.04142704]
[1609582438668,0.34416158,29670.0,29661.0,0.1235238]
[1609582438870,0.18043158,29663.0,29662.0,0.18043158]
[1609582439282,0.34339158,29663.0,29662.0,0.22185911]
[1609582442273,0.34339158,29663.0,29662.0,0.04142753]
[1609582442875,0.34339158,29663.0,29659.0,0.18043158]
[1609582443276,0.34339158,29663.0,29660.0,0.04142884]
[1609582443877,0.34339158,29663.0,29659.0,0.18043158]
[1609582444077,0.34339158,29663.0,29661.0,0.04142882]
[1609582444478,0.34339158,29663.0,29660.0,0.04142819]
[1609582444677,0.34339158,29663.0,29662.0,0.04142945]
[1609582444877,0.34339158,29663.0,29662.0,0.22186103]
[1609582445078,0.34339158,29663.0,29662.0,0.18043158]
[1609582445279,0.34339158,29663.0,29662.0,0.22186098]
[1609582455890,0.34339158,29663.0,29662.0,0.0414294]
[1609582456392,0.34339158,29663.0,29658.0,0.1235305]
[1609582456592,0.34339158,29663.0,29662.0,0.04143235]
[1609582456893,0.34339158,29663.0,29658.0,0.12353049]
[1609582457093,0.34339158,29663.0,29662.0,0.18043158]
[1609582457293,0.34339158,29663.0,29662.0,0.221864]
[1609582459998,0.34339158,29663.0,29662.0,0.04143242]
[1609582460298,0.34339158,29663.0,29658.0,0.12353096]
[1609582461000,0.18043158,29659.0,29658.0,0.30396254]
[1609582463805,0.18043158,29659.0,29658.0,0.22186447]
[1609582467312,0.18043158,29659.0,29658.0,4.86596447]
[1609582467714,0.18043158,29659.0,29658.0,4.94807136]
[1609582468818,0.18043158,29659.0,29658.0,0.30397136]
[1609582469220,0.18043158,29659.0,29658.0,0.22186447]
[1609582469919,4.21053158,29659.0,29658.0,0.22186447]
[1609582471220,4.0301,29659.0,29658.0,0.04143289]
[1609582471720,4.0301,29659.0,29654.0,0.12354635]
[1609582471921,4.0301,29659.0,29658.0,0.04143577]
[1609582472120,4.0301,29659.0,29655.0,0.22186723]
[1609582472520,4.0301,29659.0,29658.0,0.04143565]
[1609582472722,4.0301,29659.0,29656.0,0.04143556]
[1609582472920,4.0301,29659.0,29658.0,0.04143531]
[1609582473221,4.0301,29659.0,29657.0,0.04143553]
[1609582473422,4.0301,29659.0,29658.0,0.04143633]
[1609582473822,4.21053158,29659.0,29658.0,0.04143633]
[1609582474024,4.21053158,29659.0,29656.0,0.04143707]
[1609582474221,4.21053158,29659.0,29658.0,0.04143702]
[1609582474424,1.18043158,29659.0,29658.0,0.04143702]
[1609582474621,5.16353158,29659.0,29657.0,0.04143834]
[1609582474822,5.16353158,29659.0,29658.0,0.04143998]
[1609582475425,4.16353158,29659.0,29654.0,0.04144214]
[1609582475625,4.16353158,29659.0,29658.0,0.04144203]
[1609582475824,5.16353158,29659.0,29655.0,0.04144226]
[1609582476226,5.16353158,29659.0,29654.0,0.04144398]
[1609582476428,5.16353158,29659.0,29656.0,0.00037949]
[1609582476630,5.16353158,29659.0,29655.0,0.00037951]
[1609582476929,5.16353158,29659.0,29654.0,0.00037951]
[1609582477129,5.16353158,29659.0,29656.0,0.00037951]
[1609582477430,5.16353158,29659.0,29655.0,0.00037951]
[1609582477829,5.16353158,29659.0,29653.0,2.65234045]
[1609582477830,0.18043158,29656.0,29654.0,0.00037951]
[1609582478029,0.18043158,29656.0,29653.0,2.65234045]
[1609582478030,0.7626,29655.0,29653.0,2.65234045]
[1609582478630,0.7626,29655.0,29654.0,0.00037951]
[1609582479734,0.34016158,29656.0,29654.0,0.00037951]
[1609582482137,0.15973,29656.0,29654.0,0.00037951]
[1609582482737,0.15973,29656.0,29654.0,0.04143876]
[1609582483037,0.16296,29663.0,29654.0,0.04143876]
[1609582483237,0.16296,29663.0,29655.0,0.00037943]
[1609582483438,0.15,29669.0,29655.0,0.00037943]
[1609582483637,0.15,29669.0,29654.0,0.04143868]
[1609582483837,0.15,29669.0,29658.0,0.18043158]
[1609582484438,0.15,29669.0,29659.0,0.04143433]
[1609582485939,0.18043158,29660.0,29659.0,0.04143433]
[1609582486139,0.34808158,29660.0,29659.0,0.04143433]
[1609582490245,5.47658158,29660.0,29659.0,0.04143433]
[1609582491946,5.47658158,29660.0,29659.0,0.07143433]
[1609582492749,0.34808158,29660.0,29659.0,0.07143433]
[1609582495349,0.34808158,29660.0,29659.0,0.17213433]
[1609582495549,0.34808158,29660.0,29659.0,0.07143433]
[1609582506862,0.34808158,29660.0,29659.0,5.27713433]
[1609582507062,0.16765,29660.0,29659.0,5.27713433]
[1609582507263,0.15,29669.0,29659.0,5.27713433]
[1609582507862,0.15,29669.0,29660.0,0.04142693]
[1609582508065,0.15,29669.0,29660.0,0.12351991]
[1609582508263,0.15,29669.0,29668.0,0.18043158]
[1609582508464,0.15,29669.0,29668.0,0.84653158]
[1609582508864,0.15,29669.0,29668.0,0.88795356]
[1609582511867,0.15,29669.0,29668.0,0.97003894]
[1609582522577,0.05293,29670.0,29668.0,1.97003894]
[1609582522777,0.11801,29676.0,29668.0,1.22185356]
[1609582522978,0.292,29699.0,29675.0,5.4041]
[1609582523377,0.292,29699.0,29676.0,0.04140715]
[1609582524379,0.292,29699.0,29694.0,0.18043158]
[1609582524779,0.292,29699.0,29695.0,0.00037734]
[1609582526281,0.18043158,29696.0,29695.0,0.00037734]
[1609582526782,0.29329158,29696.0,29695.0,0.00037734]
[1609582533391,0.11286,29696.0,29695.0,0.00037734]
[1609582533592,0.028,29700.0,29695.0,0.00037734]
[1609582534392,0.028,29700.0,29699.0,0.18043158]
[1609582534792,0.028,29700.0,29699.0,0.18080885]
[1609582534993,0.028,29700.0,29699.0,4.47760885]
[1609582536492,0.028,29700.0,29699.0,0.18080885]
[1609582539898,0.18608,29700.0,29699.0,0.18080885]
[1609582540199,0.18608,29700.0,29699.0,0.00037727]
[1609582540998,0.18608,29700.0,29695.0,0.00037725]
[1609582542499,0.18043158,29696.0,29695.0,0.00037725]
[1609582544104,0.18608,29700.0,29699.0,5.2872]
[1609582544403,0.18608,29700.0,29699.0,5.46763158]
[1609582544703,0.18608,29700.0,29699.0,5.46800883]
[1609582545703,0.18608,29700.0,29699.0,0.18080883]
[1609582546606,0.1864902,29700.0,29699.0,0.18080883]
[1609582553415,1.1864902,29700.0,29699.0,0.18080883]
[1609582554420,0.1864902,29700.0,29699.0,0.18080883]
[1609582555419,1.1864902,29700.0,29699.0,0.00037725]
[1609582555619,5.1227902,29700.0,29699.0,0.00037725]
[1609582556119,5.1227902,29700.0,29686.0,0.04139687]
[1609582556320,5.1227902,29700.0,29699.0,0.00037726]
[1609582556721,5.1227902,29700.0,29686.0,0.04139692]
[1609582556923,5.1227902,29700.0,29699.0,0.00037728]
[1609582557121,0.00041025,29699.0,29687.0,0.00037728]
[1609582557422,5.12279025,29700.0,29699.0,0.00037728]
[1609582557823,5.12238,29700.0,29688.0,0.00037728]
[1609582558024,5.12238,29700.0,29686.0,0.04101964]
[1609582558025,5.12279025,29700.0,29699.0,0.00037728]
[1609582558226,0.00041025,29699.0,29689.0,0.0003773]
[1609582558528,0.18043158,29690.0,29686.0,0.04139694]
[1609582558726,0.35122158,29690.0,29686.0,0.04101964]
[1609582559027,0.35122158,29690.0,29687.0,0.00037729]
[1609582559428,0.35122158,29690.0,29686.0,0.04139693]
[1609582559628,0.35122158,29690.0,29688.0,0.00037729]
[1609582559828,0.35122158,29690.0,29687.0,0.00037729]
[1609582560229,0.35122158,29690.0,29686.0,0.04139693]
[1609582560429,0.30122158,29690.0,29688.0,0.00037729]
[1609582560630,0.17079,29690.0,29687.0,0.18080887]
[1609582560830,0.17079,29690.0,29689.0,0.00037729]
[1609582561232,0.17079,29690.0,29689.0,4.0356]
[1609582561433,0.17079,29690.0,29689.0,4.03597726]
[1609582561833,0.17079,29690.0,29689.0,4.07699765]
[1609582563738,0.18608,29700.0,29689.0,4.07662039]
[1609582563939,0.18608,29700.0,29689.0,4.07699992]
[1609582564138,0.18608,29700.0,29690.0,0.04139276]
[1609582564540,0.18608,29700.0,29699.0,0.18043158]
[1609582564839,0.18608,29700.0,29699.0,0.22182424]
[1609582568043,0.18608,29700.0,29699.0,0.18081111]
[1609582568243,0.18608,29700.0,29699.0,0.22182716]
[1609582568545,0.18608,29700.0,29699.0,0.18081111]
[1609582571047,0.18608,29700.0,29699.0,0.22182612]
[1609582571249,0.18608,29700.0,29699.0,0.18081111]
[1609582571448,0.18608,29700.0,29699.0,0.22182606]
[1609582575952,0.18608,29700.0,29699.0,5.77042606]
[1609582576953,0.18608,29700.0,29699.0,0.22182606]
[1609582578654,0.18608,29700.0,29699.0,0.82602606]
[1609582579655,0.18608,29700.0,29699.0,0.78501111]
[1609582580057,0.18608,29700.0,29699.0,0.82602095]
[1609582580456,0.13078,29700.0,29699.0,0.82602095]
[1609582580857,0.18043158,29715.0,29699.0,0.82602095]
[1609582581256,0.18043158,29715.0,29700.0,0.04138564]
[1609582582560,0.18043158,29715.0,29714.0,0.18043158]
[1609582582861,0.18043158,29715.0,29714.0,0.18081104]
[1609582587968,0.31624158,29715.0,29714.0,0.18081104]
[1609582589771,0.31624158,29715.0,29714.0,0.28211104]
[1609582591073,0.31624158,29715.0,29714.0,0.18081104]
[1609582592073,0.31624158,29715.0,29714.0,0.28221104]
[1609582593176,0.31624158,29715.0,29714.0,0.21081104]
[1609582593776,0.29624158,29715.0,29714.0,0.21081104]
[1609582594477,0.29624158,29715.0,29714.0,0.31251104]
[1609582596881,0.29624158,29715.0,29714.0,0.21081104]
[1609582597880,0.29624158,29715.0,29714.0,0.31181104]
[1609582598985,0.29624158,29715.0,29714.0,0.13137946]
[1609582599783,0.29624158,29715.0,29714.0,0.03037946]
[1609582600684,0.29624158,29715.0,29714.0,0.21081104]
[1609582600884,0.29624158,29715.0,29714.0,0.31071104]
[1609582601686,0.29624158,29715.0,29714.0,1.09771104]
[1609582602386,0.29624158,29715.0,29714.0,0.99781104]
[1609582603485,0.29624158,29715.0,29714.0,1.09821104]
[1609582603985,0.27624158,29715.0,29714.0,1.09821104]
[1609582604887,0.27624158,29715.0,29714.0,0.99781104]
[1609582605088,0.13581,29715.0,29714.0,0.99781104]
[1609582605287,0.1297,29715.0,29714.0,0.99781104]
[1609582605889,0.1297,29715.0,29714.0,1.09881104]
[1609582606087,0.1053,29715.0,29714.0,1.09881104]
[1609582606488,0.1053,29715.0,29714.0,1.03880955]
[1609582606889,0.0895,29715.0,29714.0,1.03880955]
[1609582607691,0.0628,29715.0,29714.0,1.03880955]
[1609582608491,0.0494,29715.0,29714.0,1.03880955]
[1609582609292,0.0343,29715.0,29714.0,1.03880955]
[1609582609493,0.0195,29715.0,29714.0,1.03880955]
[1609582609895,0.0195,29715.0,29714.0,2.03880955]
[1609582610093,0.0095,29715.0,29714.0,2.03880955]
[1609582610295,1.42396505,29735.0,29714.0,2.03880955]
[1609582610495,1.42396505,29735.0,29714.0,1.25180955]
[1609582610694,1.42396505,29735.0,29726.0,4.2034]
[1609582610896,0.45553158,29740.0,29734.0,0.18043158]
[1609582611195,0.45553158,29740.0,29735.0,0.5821]
[1609582611395,0.00040987,29739.0,29735.0,0.00037928]
[1609582611594,0.14536987,29739.0,29738.0,4.9261]
[1609582611794,0.24646987,29739.0,29738.0,4.9261]
[1609582612195,0.24606,29739.0,29738.0,4.92647926]
[1609582612594,0.14496,29739.0,29738.0,4.92647926]
[1609582612795,0.14496,29739.0,29738.0,0.18081084]
[1609582613194,0.14496,29739.0,29738.0,0.18043158]
[1609582613596,0.24606,29739.0,29738.0,0.18043158]
[1609582614899,0.24606,29739.0,29724.0,4.4589]
[1609582614900,1.14496,29739.0,29724.0,4.4589]
[1609582615098,1.14496,29739.0,29725.0,0.00037926]
[1609582616000,0.14496,29739.0,29725.0,0.00037926]
[1609582616603,6.40363158,29740.0,29725.0,0.00037926]
[1609582616801,6.2232,29740.0,29734.0,0.18043158]
[1609582617003,1.2751,29740.0,29734.0,0.18043158]
[1609582617203,0.1012,29739.0,29734.0,0.18043158]
[1609582617404,1.25547,29739.0,29734.0,0.18043158]
[1609582617802,1.15427,29739.0,29734.0,0.18043158]
[1609582618301,0.15427,29739.0,29734.0,0.18043158]
[1609582619001,0.18043158,29735.0,29734.0,0.18043158]
[1609582620806,0.18043158,29738.0,29734.0,0.18043158]
[1609582622807,0.15427,29739.0,29737.0,0.18043158]
[1609582623007,0.2751,29740.0,29737.0,0.18043158]
[1609582623810,0.1004,29739.0,29731.0,5.416]
[1609582624011,0.16045,29739.0,29716.0,0.0199]
[1609582624211,1.16045,29739.0,29719.0,5.274]
[1609582624810,1.16045,29739.0,29729.0,0.18043158]
[1609582626214,0.16045,29739.0,29729.0,0.18043158]
[1609582626418,0.16045,29739.0,29729.0,4.31883158]
[1609582626917,0.16045,29739.0,29733.0,0.18043158]
[1609582628920,0.16045,29739.0,29737.0,0.18043158]
[1609582629419,0.2751,29740.0,29737.0,0.18043158]
[1609582630920,0.18043158,29738.0,29737.0,0.18043158]
[1609582631122,0.33214158,29738.0,29737.0,0.18043158]
[1609582632225,0.33214158,29738.0,29716.0,0.0199]
[1609582632626,0.33214158,29738.0,29730.0,0.00037919]
[1609582632828,0.18043158,29731.0,29729.0,0.18043158]
[1609582633027,0.34794158,29731.0,29729.0,0.18043158]
[1609582633427,0.34794158,29731.0,29730.0,0.00037919]
[1609582637831,1.34794158,29731.0,29730.0,0.00037919]
[1609582638031,6.11134158,29731.0,29717.0,0.04098095]
[1609582638232,6.11134158,29731.0,29730.0,0.00037922]
[1609582638431,6.11134158,29731.0,29717.0,0.04136019]
[1609582638632,6.11175143,29731.0,29730.0,0.00037926]
[1609582639033,6.11175143,29731.0,29722.0,0.18043158]
[1609582639233,6.11175143,29731.0,29730.0,0.00037926]
[1609582639433,0.00040985,29730.0,29722.0,0.18043158]
[1609582639634,6.11175143,29731.0,29730.0,0.00037926]
[1609582639934,6.11134158,29731.0,29723.0,0.00037926]
[1609582640235,0.00040987,29730.0,29723.0,0.00037926]
[1609582640937,0.18043158,29724.0,29723.0,0.00037926]
[1609582641335,0.34322158,29724.0,29723.0,0.00037926]
[1609582642134,0.34363148,29724.0,29723.0,0.00037926]
[1609582642735,1.34363148,29724.0,29723.0,0.00037926]
[1609582642936,6.03053148,29724.0,29723.0,0.00037926]
[1609582643137,5.03053148,29724.0,29717.0,0.1808109]
[1609582643336,5.03053148,29724.0,29723.0,0.00037932]
[1609582643737,5.03012158,29724.0,29718.0,0.00037932]
[1609582644938,0.18043158,29719.0,29718.0,0.00037932]
[1609582645739,0.18043158,29719.0,29717.0,0.17043158]
[1609582647441,0.18043158,29719.0,29718.0,0.5427]
[1609582647642,0.16279,29724.0,29718.0,0.5327]
[1609582647842,0.2913,29730.0,29718.0,0.5327]
[1609582648150,0.2913,29730.0,29719.0,0.00037932]
[1609582648543,0.02,29730.0,29719.0,0.00037932]
[1609582648944,0.02,29730.0,29727.0,0.18043158]
[1609582649444,0.02,29730.0,29728.0,0.0003793]
[1609582650944,0.18043158,29729.0,29728.0,0.0003793]
[1609582657551,0.18043158,29729.0,29728.0,4.7634793]
[1609582666967,0.02,29730.0,29728.0,4.7634793]
[1609582667566,0.02,29730.0,29729.0,0.00037916]
[1609582669067,0.02,29730.0,29728.0,0.00037916]
[1609582669269,0.02,29730.0,29729.0,0.00037916]
[1609582669869,0.02,29730.0,29728.0,0.00037916]
[1609582670070,0.02,29730.0,29729.0,0.00037916]
[1609582670569,0.02,29730.0,29728.0,0.00037916]
[1609582671970,0.02,29730.0,29717.0,0.04135485]
[1609582672170,0.02,29730.0,29729.0,0.00037916]
[1609582672571,0.1222,29730.0,29729.0,0.1006]
[1609582672772,0.1222,29730.0,29729.0,0.10097917]
[1609582673173,0.30263158,29730.0,29729.0,0.28141075]
[1609582673573,0.20043158,29730.0,29729.0,0.18081075]
[1609582674573,0.20043158,29730.0,29729.0,0.28041075]
[1609582674775,0.30073158,29730.0,29729.0,0.28041075]
[1609582675774,0.20043158,29730.0,29729.0,0.18081075]
[1609582676776,0.30243158,29730.0,29729.0,0.28141075]
[1609582677976,0.30243158,29730.0,29729.0,0.93698518]
[1609582678377,0.122,29730.0,29729.0,0.93698518]
[1609582680782,0.02,29730.0,29729.0,0.83638518]
[1609582681782,0.1205,29730.0,29729.0,0.93588518]
[1609582682984,0.02,29730.0,29729.0,0.83638518]
[1609582683988,0.1218,29730.0,29729.0,0.93838518]
[1609582686994,0.02,29730.0,29729.0,0.83638518]
[1609582697406,0.02,29730.0,29729.0,0.22178518]
[1609582707220,3.8651,29730.0,29729.0,0.0413536]
[1609582707420,4.8651,29730.0,29729.0,0.0413536]
[1609582707622,4.8651,29730.0,29722.0,0.18043158]
[1609582707822,4.8451,29730.0,29729.0,0.00038102]
[1609582708023,4.8451,29730.0,29723.0,0.04136244]
[1609582708423,4.8451,29730.0,29729.0,0.00038104]
[1609582708623,4.8451,29730.0,29723.0,0.04136246]
[1609582708923,4.8451,29730.0,29729.0,0.00038106]
[1609582709128,4.8451,29730.0,29724.0,0.00038106]
[1609582709326,0.18043158,29725.0,29724.0,0.00038106]
[1609582709525,0.18043158,29725.0,29723.0,0.04136248]
[1609582709726,1.32940158,29725.0,29724.0,0.00038108]
[1609582710226,1.97560158,29725.0,29723.0,0.04136248]
[1609582710427,1.97560158,29725.0,29724.0,0.00038108]
[1609582710627,0.97560158,29725.0,29724.0,0.00038108]
[1609582710826,1.97560158,29725.0,29723.0,0.04136248]
[1609582711026,1.97560158,29725.0,29724.0,0.00038108]
[1609582711527,1.97560158,29725.0,29723.0,0.04136248]
[1609582711727,0.97560158,29725.0,29723.0,0.04136248]
[1609582711926,0.97560158,29725.0,29724.0,0.00038108]
[1609582712326,0.97560158,29725.0,29723.0,0.00038108]
[1609582712528,0.97560158,29725.0,29724.0,0.00038108]
[1609582712827,0.97560158,29725.0,29723.0,0.04136593]
[1609582713027,0.32940158,29725.0,29723.0,0.04136593]
[1609582723445,0.14897,29725.0,29723.0,0.04136593]
[1609582723645,0.18043158,29728.0,29723.0,0.04136593]
[1609582725347,0.18043158,29728.0,29727.0,0.18043158]
[1609582725848,0.18043158,29728.0,29727.0,0.22179098]
[1609582730351,0.16751,29731.0,29727.0,0.22179098]
[1609582730551,1.2912,29734.0,29727.0,0.22179098]
[1609582730752,1.2912,29734.0,29728.0,0.0413586]
[1609582730953,0.2912,29734.0,29728.0,0.0413586]
[1609582731152,0.2912,29734.0,29733.0,4.0589]
[1609582731353,0.2912,29734.0,29733.0,4.23933158]
[1609582731957,0.2912,29734.0,29733.0,4.28068656]
[1609582732156,0.18043158,29735.0,29733.0,4.28068656]
[1609582732356,0.18043158,29735.0,29733.0,4.23971255]
[1609582732756,0.18043158,29735.0,29734.0,0.00038097]
[1609582742874,0.2952,29740.0,29734.0,0.00038097]
[1609582743276,1.0,29747.0,29739.0,4.2449]
[1609582743474,0.2957,29748.0,29734.0,0.00038097]
[1609582743475,0.2957,29748.0,29745.0,0.18043158]
[1609582743875,0.2957,29748.0,29747.0,4.7225]
[1609582744276,0.2957,29748.0,29747.0,4.72288117]
[1609582745076,0.2957,29748.0,29747.0,0.00038117]
[1609582745476,0.47613158,29748.0,29747.0,0.00038117]
[1609582745677,0.47613158,29748.0,29746.0,0.00038115]
[1609582745877,0.61233158,29748.0,29747.0,0.00038115]
[1609582746378,0.61233158,29748.0,29746.0,0.00038115]
[1609582752893,0.31663158,29748.0,29746.0,0.00038115]
[1609582753093,0.31663158,29748.0,29747.0,4.2181]
[1609582753295,0.1362,29748.0,29747.0,4.2181]
[1609582753492,0.1362,29748.0,29747.0,4.2184811]
[1609582753692,0.18043158,29757.0,29747.0,4.2184811]
[1609582754092,0.18043158,29757.0,29748.0,0.0003811]
[1609582755593,0.18043158,29757.0,29756.0,0.18043158]
[1609582755993,0.18043158,29757.0,29756.0,5.64781268]
[1609582757395,0.2928,29759.0,29756.0,5.64781268]
[1609582757998,0.2928,29759.0,29757.0,0.00038108]
[1609582758698,1.4244098,29776.0,29757.0,0.00038108]
[1609582758899,1.7006098,29776.0,29757.0,0.00038108]
[1609582759097,1.7006098,29776.0,29769.0,5.2942]
[1609582759098,0.00040954,29775.0,29769.0,5.2942]
[1609582759297,0.12715954,29775.0,29756.0,0.18043158]
[1609582759499,0.30759112,29775.0,29773.0,0.18043158]
[1609582759698,0.30759112,29775.0,29760.0,3.8524]
[1609582759899,0.30718158,29775.0,29749.0,0.0993]
[1609582760099,0.30718158,29775.0,29761.0,0.00038102]
[1609582760501,4.1002,29769.0,29758.0,0.00038102]
[1609582760701,4.23412,29769.0,29762.0,0.000381]
[1609582760900,1.0,29768.0,29759.0,0.000381]
[1609582761200,1.0,29768.0,29763.0,0.000381]
[1609582761402,0.13392,29769.0,29760.0,0.000381]
[1609582761602,0.13392,29769.0,29762.0,0.18043158]
[1609582762203,0.13392,29769.0,29763.0,0.00038102]
[1609582763105,0.13392,29769.0,29762.0,0.18043158]
[1609582763706,0.13392,29769.0,29758.0,5.0334]
[1609582764106,0.13392,29769.0,29759.0,0.00038101]
[1609582764406,1.13392,29769.0,29759.0,0.00038101]
[1609582764908,1.13392,29769.0,29758.0,5.0334]
[1609582765107,0.13392,29769.0,29758.0,5.0334]
[1609582765508,0.13392,29769.0,29759.0,0.000381]
[1609582765707,0.13392,29769.0,29767.0,0.18043158]
[1609582765908,0.12675,29775.0,29767.0,0.18043158]
[1609582766107,0.2762,29776.0,29767.0,0.18043158]
[1609582766407,0.00040952,29775.0,29767.0,0.18043158]
[1609582766607,0.15304952,29775.0,29767.0,0.18043158]
[1609582767008,0.15264,29775.0,29767.0,0.18043158]
[1609582767609,0.15264,29775.0,29773.0,0.18043158]
[1609582768509,0.15264,29775.0,29765.0,4.1534]
[1609582769710,0.15264,29775.0,29773.0,0.18043158]
[1609582770716,1.41349361,29783.0,29774.0,6.0016]
[1609582771513,1.41349361,29783.0,29775.0,0.00038077]
[1609582771714,1.41349361,29783.0,29782.0,0.18043158]
[1609582771914,1.41063934,29788.0,29782.0,4.35263158]
[1609582772113,1.41063934,29788.0,29782.0,4.35301224]
[1609582772313,1.41063934,29788.0,29783.0,0.00038066]
[1609582772514,1.39813934,29788.0,29783.0,0.00038066]
[1609582772714,1.22713934,29788.0,29783.0,0.00038066]
[1609582773117,0.2714,29809.0,29783.0,0.00038066]
[1609582773515,0.2714,29809.0,29784.0,0.0993]
[1609582773716,0.00040911,29808.0,29784.0,0.0993]
[1609582773917,0.00040911,29808.0,29785.0,0.00038056]
[1609582774116,0.15101911,29808.0,29785.0,0.00038056]
[1609582774516,0.70900906,29807.0,29785.0,0.00038056]
[1609582774916,0.00040908,29806.0,29783.0,0.00038058]
[1609582775316,0.7086,29807.0,29782.0,4.1481]
[1609582775717,0.7086,29807.0,29801.0,0.18043158]
[1609582776020,0.15061,29808.0,29801.0,0.18043158]
[1609582777724,0.15061,29808.0,29805.0,0.18043158]
[1609582779129,0.2714,29809.0,29805.0,0.18043158]
[1609582779729,0.18043158,29806.0,29805.0,0.18043158]